Cogmind - Beta 13 @@@ ROGUE MODE // 2024.06.21 @ 17:04:13 Player: ZergFTW Result: Destroyed by H-77 Assassin with High-powered Shotgun Performance ------------- Evolutions (6) 3000 Regions Visited (12) 2400 Robots Destroyed (131) 655 Value Destroyed (3752) 3752 Prototype IDs (1) 20 Alien Tech Used (0) 0 Bonus (783) 783 TOTAL SCORE: 10610 Bonus ------- High Alert Combat Kills 283 Entered DSFs 500 Cogmind --------- Core Integrity 0/1150 Matter 167/300 Energy 47/100 System Corruption 8% Temperature Cool (0) Movement Flying (40) Location -4/Factory Parts ------- > --- POWER (2) -------- (None) > --- PROPULSION (4) --- Impulse Thruster > --- UTILITY (9) ------ Hacking Suite > --- WEAPON (4) ------- (None) > --- INVENTORY (5) ---- Advanced Melee Analysis Suite Autogun Peak State ------------ > --- POWER ------------ Micro Fission Core Light Antimatter Reactor > --- PROPULSION ------- Improved Antigrav System Improved Antigrav System Improved Antigrav System Improved Antigrav System > --- UTILITY ---------- Small Storage Unit Structural Scanner Triangulator Advanced Signal Interpreter ECM Suite Improved Reaction Control System Hacking Suite Hacking Suite Makeshift Hacking Suite > --- WEAPON ----------- Heavy Disruptor Cannon Autogun Power Maul > --- INVENTORY -------- Micro Fission Core Antimatter Reactor Improved Gravmag System Gravmag Array Improved Phase Shifter [Rating: 92] Favorites ----------- Power Light Nuclear Core Engine Light Ion Engine Power Core Light Nuclear Core Reactor Light Antimatter Reactor Propulsion Wheel Treads Armored Treads Leg Aluminum Leg Wheel Wheel Hover Unit Gravmag System Flight Unit Improved Surge Thruster Utility Hacking Suite Device Structural Scanner Storage Large Storage Unit Processor Advanced Targeting Computer Hackware Hacking Suite Weapon Autogun Energy Gun Particle Gun Energy Cannon EM Pulse Cannon Ballistic Gun Autogun Ballistic Cannon Heavy Assault Cannon Launcher Grenade Launcher Special Weapon Mining Laser Impact Weapon Powered Hammer Slashing Weapon Carbide Saw Build | -11 -10 -10 -10 -9 -8 -7 -6 -6 -6 -5 -5 -4 ------- Run | Yrd Mat Min Exi Min Mat Fac Fac Low Low Fac DSF Fac Slots Evolved 12 | . . . . . 4 2 2 . . 2 . 2 Power 1 | . . . . . . . . . . . . 1 Propulsion 2 | . . . . . 1 . 1 . . . . . Utility 7 | . . . . . 2 1 1 . . 2 . 1 Weapon 2 | . . . . . 1 1 . . . . . . Parts Attached 186 | 7 22 7 . 2 60 20 13 9 . 2 12 32 Power 23 | 1 4 . . . 7 1 . 3 . . 1 6 Engine 7 | 1 3 . . . 3 . . . . . . . Core 15 | . 1 . . . 4 1 . 3 . . 1 5 Reactor 1 | . . . . . . . . . . . . 1 Propulsion 52 | 3 7 . . 1 14 5 4 . . . 5 13 Treads 7 | . . . . . 6 1 . . . . . . Leg 5 | . 1 . . . 4 . . . . . . . Wheel 17 | 3 6 . . 1 4 . . . . . . 3 Hover 16 | . . . . . . 4 4 . . . 5 3 Flight 7 | . . . . . . . . . . . . 7 Utility 36 | 1 3 . . . 12 5 4 . . 2 2 7 Device 17 | . . . . . 4 2 2 . . 2 1 6 Storage 8 | 1 2 . . . 3 2 . . . . . . Processor 7 | . 1 . . . 4 . 2 . . . . . Hackware 4 | . . . . . 1 1 . . . . 1 1 Protection . | . . . . . . . . . . . . . Artifact . | . . . . . . . . . . . . . Weapon 75 | 2 8 7 . 1 27 9 5 6 . . 4 6 Energy Gun 12 | 1 5 3 . . 2 . . . . . . 1 Energy Cannon 7 | . . . . 1 5 . . . . . . 1 Ballistic Gun 27 | 1 1 1 . . 10 6 3 2 . . 2 1 Ballistic Cannon 8 | . . . . . 4 1 1 1 . . . 1 Launcher 13 | . 2 3 . . 4 1 . 2 . . 1 . Special Weapon 2 | . . . . . 2 . . . . . . . Impact Weapon 5 | . . . . . . 1 1 1 . . 1 1 Slashing Weapon 1 | . . . . . . . . . . . . 1 Piercing Weapon . | . . . . . . . . . . . . . Special Melee Weapon . | . . . . . . . . . . . . . Unidentified Prototypes 1 | . . . . . . . 1 . . . . . Corrupted Parts 1 | . . . . . . . . . . . . 1 System Corruption 9 | . . . . . . . . . . . . 9 Parts Lost 60 | . 6 1 . . 20 1 2 . . . 7 23 Power 8 | . 2 . . . 2 . . . . . 1 3 Propulsion 20 | . 2 . . . 6 1 1 . . . 2 8 Utility 15 | . . . . . 5 . . . . . 2 8 Weapon 17 | . 2 1 . . 7 . 1 . . . 2 4 Highest Loss Streak 17 | . 3 1 . . 11 1 1 . . . 6 17 To Critical Strikes . | . . . . . . . . . . . . . Average Slot Usage (%) 89 | . 92 99 100 100 88 99 95 93 93 94 81 67 Engine 5 | . 8 14 14 14 3 . . . . . . . Core 3 | . 2 . . . 4 6 6 6 6 5 4 5 Treads 7 | . . . . . 18 17 . . . . . . Wheel 10 | . 26 28 28 28 3 . . . . . . 2 Hover 3 | . . . . . . 5 21 20 20 17 15 4 Device 5 | . . . . . 6 5 6 6 6 17 16 17 Storage 9 | . 14 14 14 14 8 7 6 6 6 5 5 1 Processor 13 | . 11 14 14 14 16 15 13 13 13 11 11 4 Hackware 5 | . . . . . 2 8 13 13 13 11 9 14 Energy Gun 4 | . 14 8 . . 2 . . . . . . . Ballistic Gun 9 | . 8 8 14 7 6 28 20 16 6 5 5 1 Ballistic Cannon 3 | . . . . . 8 . . 1 6 5 1 . Launcher 2 | . 4 10 14 14 . . . 1 6 5 . . Impact Weapon 1 | . . . . . . . 5 6 6 5 4 4 Naked Turns 1 | . . . . . 1 . . . . . . . Heaviest Build 50 | 11 29 29 27 30 45 46 28 36 36 39 39 50 Greatest Support 62 | 26 20 20 20 20 62 62 39 39 39 39 46 56 Greatest Overweight (x) 11 | 1 6 1 1 1 11 1 1 . . . 8 6 Average Overweight (x) . | . . 1 1 1 . . . . . . . . Largest Inventory Capacity 15 | 8 15 15 15 15 15 15 8 8 8 8 8 8 Average Capacity 12 | 7 11 15 15 15 14 13 8 8 8 8 8 5 Most Carried 15 | 7 15 15 15 15 15 15 8 8 8 7 8 8 Average Carried 10 | 3 10 14 14 14 12 13 7 7 8 6 6 4 Final Capacity 15 | 8 15 15 15 15 15 8 8 8 8 8 8 5 Final Carried 15 | 7 15 15 15 15 15 8 8 8 8 6 8 2 Class Distribution -------------------- 29% | Gunner 26% | Scavenger-Mutant 9% | Hacker-Mutant 9% | Hacker-Skirmisher 8% | Scavenger-Gunner 7% | Mutant 3% | Scavenger-Skirmisher Dominant Class ---------------- Scavenger-Mutant | -10/Materials Scavenger-Mutant | -10/Mines Scavenger-Mutant | -10/Exiles Scavenger-Mutant | -9/Mines Gunner | -8/Materials Gunner | -7/Factory Scavenger-Gunner | -6/Factory Hacker-Skirmisher | -6/Lower Caves Hacker-Skirmisher | -6/Lower Caves Hacker-Skirmisher | -5/Factory Hacker-Mutant | -5/DSF Hacker-Mutant | -4/Factory Resources | -11 -10 -10 -10 -9 -8 -7 -6 -6 -6 -5 -5 -4 ----------- Run | Yrd Mat Min Exi Min Mat Fac Fac Low Low Fac DSF Fac Matter Collected 4143 | 281 548 125 13 . 2094 229 208 367 . . 5 273 Remotely . | . . . . . . . . . . . . . Salvage Created 3655 | 132 688 153 . . 1910 236 229 51 . . 1 255 Parts 254 | 11 55 5 . . 128 17 15 7 . . 2 14 Haulers Intercepted . | . . . . . . . . . . . . . Recyclers Shooed 3 | . . . . . 1 1 . . . . . 1 Parts Field Recycled . | . . . . . . . . . . . . . Retrieved Matter . | . . . . . . . . . . . . . Parts Self-Destructed 6 | . . . . . . . . 6 . . . . Prevented . | . . . . . . . . . . . . . Kills | -11 -10 -10 -10 -9 -8 -7 -6 -6 -6 -5 -5 -4 ------- Run | Yrd Mat Min Exi Min Mat Fac Fac Low Low Fac DSF Fac Combat Hostiles Destroyed 87 | . 12 4 . . 49 5 3 4 . . 3 7 Melee 5 | . . . . . . . . . . . . 5 Guns 28 | . 9 1 . . 10 5 3 . . . . . Cannons 31 | . . . . . 31 . . . . . . . AOE 21 | . 3 3 . . 8 . . 4 . . 3 . Classes Destroyed 15 | 2 5 . . . 5 1 1 . . . 1 . Worker 11 | . 5 . . . 5 . . . . . . 1 Builder 10 | . 4 . . . 6 . . . . . . . Tunneler 6 | 3 . . . . 1 . . . . . . 2 Recycler 5 | 1 1 . . . 2 1 . . . . . . Operator 3 | . . . . . 1 . 2 . . . . . Watcher 9 | . 3 . . . 3 1 1 . . . . 1 Swarmer 27 | . 3 . . . 12 4 . 4 . . . 4 Cutter 5 | . . . . . . . . . . . 3 2 Grunt 33 | . 9 4 . . 20 . . . . . . . Brawler 1 | . . . . . 1 . . . . . . . Sentry 12 | . . . . . 11 . 1 . . . . . Specialist 4 | . . . . . 4 . . . . . . . Hunter 1 | . . . . . . . 1 . . . . . Programmer 3 | . . . . . . 1 1 . . . . 1 Heavy 1 | . . . . . 1 . . . . . . . Best Kill Streak 7 | 3 5 2 . . 7 6 2 4 . . 3 4 Combat Bots Only 5 | . 5 2 . . 5 5 1 4 . . 3 4 Max Kills in Single Turn 4 | 1 2 2 . . 2 2 1 4 . . 3 1 Gunslinging 1 | . . . . . . 1 . . . . . . Exploded 4 | . 2 2 . . 2 . . 4 . . 3 . Melee 1 | . . . . . . . . . . . . 1 Uniques/NPCs Destroyed . | . . . . . . . . . . . . . Combat | -11 -10 -10 -10 -9 -8 -7 -6 -6 -6 -5 -5 -4 -------- Run | Yrd Mat Min Exi Min Mat Fac Fac Low Low Fac DSF Fac Hostile Shots Fired 738 | . 64 9 . . 252 21 104 9 . . 20 259 Missed 233 | . 14 3 . . 66 7 36 4 . . 9 94 Damage Taken 8854 | . 715 131 . . 3012 218 686 30 . . 906 3156 Core 2056 | . 150 46 . . 497 33 45 . . . 123 1162 Absorbed by Shields . | . . . . . . . . . . . . . Regen/Repaired (Parts) 73 | . . . . . 30 15 . . . . . 28 Core Remaining (%) 67 | 100 . . . 21 9 95 . . 94 . 87 . Volleys Fired 279 | 11 92 5 . . 136 14 15 1 . . 3 2 Largest 4 | 2 2 2 . . 3 4 4 1 . . 1 2 Hottest 160 | 60 85 70 . . 160 97 109 39 . . 39 126 Shots Fired 607 | 22 173 9 . . 293 56 46 1 . . 3 4 Gun 411 | 22 163 3 . . 121 56 44 . . . . 2 Cannon 160 | . . . . . 156 . 2 . . . . 2 Launcher 29 | . 10 6 . . 9 . . 1 . . 3 . Special 7 | . . . . . 7 . . . . . . . Kinetic 433 | 11 87 . . . 230 56 46 . . . . 3 Thermal 95 | . 74 3 . . 18 . . . . . . . Explosive 29 | . 10 6 . . 9 . . 1 . . 3 . Electromagnetic 50 | 11 2 . . . 36 . . . . . . 1 Robot Hit Streak 21 | 2 10 7 . . 21 5 14 8 . . 2 3 Robot Miss Streak 7 | 2 7 3 . . 4 3 2 . . . 1 1 Penetration Max . | . . . . . . . . . . . . . Secondary Targets 4 | . 1 . . . . 3 . . . . . . Max Gunslinging Chain 1 | . 1 . . . . 1 . . . . . . Shots Hit Robots 411 | 10 106 5 . . 186 26 38 1 . . 2 37 Core Hits 195 | 5 47 7 . . 91 12 15 4 . . 6 8 Critical Kills 4 | . 1 . . . 1 . . . . . . 2 Critical Parts Destroyed 9 | . 1 . . . . . . . . . . 8 Critical Strikes 23 | . 6 . . . 5 . . . . . . 12 Burn 4 | . 4 . . . . . . . . . . . Destroy 3 | . 2 . . . 1 . . . . . . . Blast 4 | . . . . . 4 . . . . . . . Smash 10 | . . . . . . . . . . . . 10 Sever 2 | . . . . . . . . . . . . 2 Melee Attacks 94 | . . . . . . 2 24 9 . . . 59 Impact 89 | . . . . . . 2 24 9 . . . 54 Slashing 5 | . . . . . . . . . . . . 5 Piercing . | . . . . . . . . . . . . . Sneak Attacks 4 | . . . . . . . . . . . . 4 Combat Hostiles . | . . . . . . . . . . . . . Follow-up Attacks 3 | . . . . . . . . . . . . 3 Damage Inflicted 11064 | 118 1386 206 . . 5836 407 817 196 . . 440 1658 Guns 3382 | 118 1056 33 . . 1339 407 385 . . . . 44 Cannons 3727 | . . . . . 3582 . 80 . . . . 65 Explosions 1951 | . 305 173 . . 837 . . 196 . . 440 . Melee 1901 | . . . . . . . 352 . . . . 1549 Ramming 25 | . 25 . . . . . . . . . . . Kinetic 5776 | 26 440 . . . 4373 407 465 . . . . 65 Thermal 962 | . 673 33 . . 256 . . . . . . . Explosive 1815 | . 248 173 . . 758 . . 196 . . 440 . Electromagnetic 585 | 92 . . . . 449 . . . . . . 44 Impact 1758 | . . . . . . . 352 . . . . 1406 Slashing 143 | . . . . . . . . . . . . 143 Piercing . | . . . . . . . . . . . . . Highest Corruption 10 | . 2 2 2 2 3 1 . . . . . 10 Average Corruption 3 | . 2 2 2 2 3 1 . . . . . 8 Corruption Purged 11 | . . . . . . . . . . . . 11 Corruption Blocked . | . . . . . . . . . . . . . Effects 78 | . 4 9 10 . 41 . . . . . . 14 Message Errors 18 | . . 4 1 . 11 . . . . . . 2 Matter Fused 21 | . 3 . 3 . 12 . . . . . . 3 Heat Flow Errors 5 | . . 1 . . 3 . . . . . . 1 Energy Discharges 10 | . 1 1 . . 5 . . . . . . 3 Parts Rejected 2 | . . . . . 1 . . . . . . 1 Parts Fused 2 | . . . 2 . . . . . . . . . Data Loss (minor) 9 | . . 1 3 . 3 . . . . . . 2 Data Loss (major) 6 | . . 2 1 . 2 . . . . . . 1 Misfires 4 | . . . . . 3 . . . . . . 1 Alerts 1 | . . . . . 1 . . . . . . . Overload Shots . | . . . . . . . . . . . . . Overflow Damage 973 | . 86 . . . 104 . 52 23 . . 44 664 Projectiles 103 | . . . . . 103 . . . . . . . Explosions 154 | . 86 . . . 1 . . 23 . . 44 . Melee 716 | . . . . . . . 52 . . . . 664 Knockbacks 16 | . . . . . 11 . 1 . . . . 4 Impact 5 | . . . . . . . 1 . . . . 4 Kinetic 10 | . . . . . 10 . . . . . . . Secondary 1 | . . . . . 1 . . . . . . . Self-Inflicted Damage 377 | . 125 57 . . 40 . . . . . 155 . Shots 8 | . 2 2 . . 1 . . . . . 3 . Rammed 2 | . 1 . . . . . . . . . . 1 Targets Rammed 2 | . 1 . . . . . . . . . . 1 Kicked . | . . . . . . . . . . . . . Crushed . | . . . . . . . . . . . . . Highest Temperature 467 | 40 467 87 . . 261 93 72 . . . . 245 Average Temperature 72 | 20 97 43 . . 73 36 21 . . . . 40 Received Heat Transfer 1632 | . 318 63 . . 1071 9 90 . . . . 81 Effects 5 | . 4 . . . 1 . . . . . . . Energy Bleed 2 | . 1 . . . 1 . . . . . . . Interference 3 | . 3 . . . . . . . . . . . Siege Activations . | . . . . . . . . . . . . . Robots Corrupted . | . . . . . . . . . . . . . Combat Hostiles . | . . . . . . . . . . . . . Parts Fried 5 | . . . . . 2 . . . . . . 3 Impact Corruptions 30 | . . . . . . . 2 . . . . 28 Robots Melted . | . . . . . . . . . . . . . Combat Hostiles . | . . . . . . . . . . . . . Parts Melted 2 | . 2 . . . . . . . . . . . Heat Transferred 2645 | . 2048 75 . . 522 . . . . . . . Parts Sabotaged 3 | . . . . . . . . . . . . 3 Parts Stolen . | . . . . . . . . . . . . . Parts Stripped . | . . . . . . . . . . . . . Power Chain Reactions 1 | . . . . . 1 . . . . . . . Alert | -11 -10 -10 -10 -9 -8 -7 -6 -6 -6 -5 -5 -4 ------- Run | Yrd Mat Min Exi Min Mat Fac Fac Low Low Fac DSF Fac Peak Influence 796 | 20 348 161 . . 796 501 252 . . . 72 174 Initial 361 | . 13 30 . . . 361 148 . . . . 29 Average 211 | 8 170 75 . . 332 400 106 . . . 41 32 Maximum Alert Level 3 | . 1 . . . 3 2 1 . . . . . Low Security (%) 58 | 100 76 100 . 100 25 . 89 . . 100 100 100 Level 1 26 | . 23 . . . 42 68 10 . . . . . Level 2 12 | . . . . . 26 31 . . . . . . Level 3 1 | . . . . . 4 . . . . . . . Level 4 . | . . . . . . . . . . . . . Level 5 . | . . . . . . . . . . . . . High Security . | . . . . . . . . . . . . . Max Security . | . . . . . . . . . . . . . Squads Dispatched 27 | . 3 . . . 12 2 5 . . . 1 4 Investigation 8 | . 2 . . . 2 1 3 . . . . . Extermination 3 | . . . . . . 1 1 . . . . 1 Reinforcement 12 | . 1 . . . 6 . 1 . . . 1 3 Assault . | . . . . . . . . . . . . . Garrison 4 | . . . . . 4 . . . . . . . Intercept . | . . . . . . . . . . . . . Searches Triggered . | . . . . . . . . . . . . . Construction Impeded 1 | . . . . . 1 . . . . . . . Haulers Reinforced . | . . . . . . . . . . . . . Active Scanning Responses . | . . . . . . . . . . . . . Cargo Convoy Interrupts 1 | . . . . . . . . . . . . 1 Stealth | -11 -10 -10 -10 -9 -8 -7 -6 -6 -6 -5 -5 -4 --------- Run | Yrd Mat Min Exi Min Mat Fac Fac Low Low Fac DSF Fac Distress Signals 4 | . 2 . . . 1 . 1 . . . . . Communications Jammed . | . . . . . . . . . . . . . Distress Signals . | . . . . . . . . . . . . . Times Spotted 158 | . 24 4 . . 58 8 9 5 . . 6 44 Peak Tracking Total 15 | . 7 2 . . 5 5 3 5 . . 4 15 Tactical Retreats 17 | . . . . . 4 . 2 1 . . 4 6 Traps | -11 -10 -10 -10 -9 -8 -7 -6 -6 -6 -5 -5 -4 ------- Run | Yrd Mat Min Exi Min Mat Fac Fac Low Low Fac DSF Fac Traps Triggered 9 | . 6 . . . . 1 . . . . 1 1 Indirectly . | . . . . . . . . . . . . . Trap Hack Attempts . | . . . . . . . . . . . . . Triggered . | . . . . . . . . . . . . . Disarmed . | . . . . . . . . . . . . . Reprogrammed . | . . . . . . . . . . . . . Reused . | . . . . . . . . . . . . . Traps Extracted . | . . . . . . . . . . . . . Installed . | . . . . . . . . . . . . . Triggered 1 | . . 1 . . . . . . . . . . Machines | -11 -10 -10 -10 -9 -8 -7 -6 -6 -6 -5 -5 -4 ---------- Run | Yrd Mat Min Exi Min Mat Fac Fac Low Low Fac DSF Fac Machines Disabled 12 | . 7 . . . 5 . . . . . . . Max in Single Turn 4 | . 4 . . . 1 . . . . . . . Machines Repaired . | . . . . . . . . . . . . . Machines Dismantled . | . . . . . . . . . . . . . Machines Sabotaged . | . . . . . . . . . . . . . Overloaded Fab Kills . | . . . . . . . . . . . . . Hacking | -11 -10 -10 -10 -9 -8 -7 -6 -6 -6 -5 -5 -4 --------- Run | Yrd Mat Min Exi Min Mat Fac Fac Low Low Fac DSF Fac Machines Accessed 30 | . 8 . 4 . 6 2 4 . . 1 . 5 Terminals 19 | . 5 . . . 5 1 4 . . 1 . 3 Fabricators . | . . . . . . . . . . . . . Repair Stations 5 | . 1 . . . 1 1 . . . . . 2 Recycling Units 2 | . 2 . . . . . . . . . . . Scanalyzers . | . . . . . . . . . . . . . Garrison Access . | . . . . . . . . . . . . . Total Hacks 61 | . 20 . 4 . 13 6 9 . . 1 . 8 Successful 31 | . 10 . 4 . 5 2 3 . . 1 . 6 Failed 30 | . 10 . . . 8 4 6 . . . . 2 Catastrophic 11 | . 1 . . . 3 3 2 . . . . 2 Database Lockouts . | . . . . . . . . . . . . . Manual 28 | . 5 . . . 8 4 8 . . . . 3 Terminals 39 | . 10 . . . 11 4 9 . . 1 . 4 Fabricators . | . . . . . . . . . . . . . Repair Stations 11 | . 3 . . . 2 2 . . . . . 4 Recycling Units 7 | . 7 . . . . . . . . . . . Scanalyzers . | . . . . . . . . . . . . . Garrison Access . | . . . . . . . . . . . . . Terminal Hacks 15 | . 2 . 4 . 3 . 3 . . 1 . 2 Record 4 | . . . 4 . . . . . . . . . Robot Analysis 3 | . 2 . . . 1 . . . . . . . Open DSF 3 | . . . . . . . 1 . . 1 . 1 Branch Access Points 3 | . . . . . 1 . 1 . . . . 1 Unreport Threat 2 | . . . . . 1 . 1 . . . . . Fabricator Hacks . | . . . . . . . . . . . . . Repair Station Hacks 9 | . 1 . . . 2 2 . . . . . 4 Scan Component 5 | . 1 . . . 1 1 . . . . . 2 Repair 4 | . . . . . 1 1 . . . . . 2 Recycling Unit Hacks 6 | . 6 . . . . . . . . . . . Process 1 | . 1 . . . . . . . . . . . Report Inventory 2 | . 2 . . . . . . . . . . . Retrieve Matter 2 | . 2 . . . . . . . . . . . Retrieve Components 1 | . 1 . . . . . . . . . . . Scanalyzer . | . . . . . . . . . . . . . Garrison Access Hacks . | . . . . . . . . . . . . . Unauthorized Hacks 1 | . 1 . . . . . . . . . . . Terminals 1 | . 1 . . . . . . . . . . . Assimilate 1 | . 1 . . . . . . . . . . . Fabricators . | . . . . . . . . . . . . . Repair Stations . | . . . . . . . . . . . . . Recycling Units . | . . . . . . . . . . . . . Scanalyzers . | . . . . . . . . . . . . . Garrison Access . | . . . . . . . . . . . . . Data Cores Recovered . | . . . . . . . . . . . . . Used . | . . . . . . . . . . . . . Hacking Detections 16 | . 4 . . . 5 2 3 . . . . 2 Full Trace Events 7 | . 1 . . . 2 1 3 . . . . . Feedback Events . | . . . . . . . . . . . . . Feedback Blocked . | . . . . . . . . . . . . . Robot Schematics Acquired . | . . . . . . . . . . . . . Robots Built . | . . . . . . . . . . . . . Authchips . | . . . . . . . . . . . . . Time . | . . . . . . . . . . . . . Total Robot Build Rating . | . . . . . . . . . . . . . Part Schematics Acquired . | . . . . . . . . . . . . . Parts Built . | . . . . . . . . . . . . . Authchips . | . . . . . . . . . . . . . Time . | . . . . . . . . . . . . . Total Part Build Rating . | . . . . . . . . . . . . . Parts Repaired 4 | . . . . . 1 1 . . . . . 2 Time 103 | . . . . . 38 26 . . . . . 39 Parts Recycled . | . . . . . . . . . . . . . Recycled Matter 107 | . 107 . . . . . . . . . . . Retrieved Matter 132 | . 132 . . . . . . . . . . . Retrieved Components 2 | . 2 . . . . . . . . . . . Parts Scanalyzed . | . . . . . . . . . . . . . Part Schematics Acquired . | . . . . . . . . . . . . . Parts Damaged . | . . . . . . . . . . . . . Bothacking | -11 -10 -10 -10 -9 -8 -7 -6 -6 -6 -5 -5 -4 ------------ Run | Yrd Mat Min Exi Min Mat Fac Fac Low Low Fac DSF Fac Used RIF Installer . | . . . . . . . . . . . . . Robots Hacked . | . . . . . . . . . . . . . Non-combat . | . . . . . . . . . . . . . Combat . | . . . . . . . . . . . . . Robot Hacks Applied . | . . . . . . . . . . . . . Relay Couplers Released . | . . . . . . . . . . . . . Fabnet Peak Effective % . | . . . . . . . . . . . . . Robots Rewired . | . . . . . . . . . . . . . Allies Hacked . | . . . . . . . . . . . . . Hacks Repelled . | . . . . . . . . . . . . . Allies | -11 -10 -10 -10 -9 -8 -7 -6 -6 -6 -5 -5 -4 -------- Run | Yrd Mat Min Exi Min Mat Fac Fac Low Low Fac DSF Fac Total Allies . | . . . . . . . . . . . . . Largest Group . | . . . . . . . . . . . . . Highest-Rated Group . | . . . . . . . . . . . . . Highest-Rated Ally . | . . . . . . . . . . . . . Total Orders . | . . . . . . . . . . . . . Ally Attacks . | . . . . . . . . . . . . . Total Damage . | . . . . . . . . . . . . . Kills . | . . . . . . . . . . . . . Allies Corrupted . | . . . . . . . . . . . . . Allies Melted . | . . . . . . . . . . . . . Intel | -11 -10 -10 -10 -9 -8 -7 -6 -6 -6 -5 -5 -4 ------- Run | Yrd Mat Min Exi Min Mat Fac Fac Low Low Fac DSF Fac Robot Analysis Total 3 | . 2 . . . 1 . . . . . . . Derelict Logs Recovered 5 | . . 3 . . . . . 2 . . . . Drone Launches . | . . . . . . . . . . . . . Drone Recoveries . | . . . . . . . . . . . . . Exploration | -11 -10 -10 -10 -9 -8 -7 -6 -6 -6 -5 -5 -4 ------------- Run | Yrd Mat Min Exi Min Mat Fac Fac Low Low Fac DSF Fac Turns Passed 7632 | 88 1243 671 541 23 2634 421 402 524 25 9 168 883 Spaces Moved 6255 | 51 1002 644 568 19 1288 226 481 906 49 13 202 806 Core 135 | 18 5 . . . 41 . . . . . 2 69 Treads 988 | . . . . . 824 164 . . . . . . Legs 119 | . 5 . . . 114 . . . . . . . Wheels 2691 | 33 992 644 568 19 309 . . . . . . 126 Hover 2010 | . . . . . . 62 481 906 49 13 200 299 Flight 312 | . . . . . . . . . . . . 312 Fastest Speed 24 | 50 80 95 95 95 50 52 48 52 52 52 48 24 Average Speed 93 | 75 90 95 95 95 154 131 50 52 52 52 59 72 Slowest Speed 600 | 100 350 95 95 95 600 161 112 52 52 52 450 275 Overloaded Moves . | . . . . . . . . . . . . . Propulsion Burnouts . | . . . . . . . . . . . . . Robots Hopped 4 | . . . . . . . . . . . . 4 Cave-ins Triggered . | . . . . . . . . . . . . . Exploration Rate (%) 45 | 4 98 99 91 6 68 6 14 81 10 1 94 18 Regions Visited 12 Branch Regions 5 Pre-discovered Areas 1 | . . 1 . . . . . . . . . . Known Exits Taken 10 | . 1 1 1 1 1 1 1 1 1 1 . . Unknown Exits Taken 1 | 1 . . . . . . . . . . . . Scrap Searched 6 | . . 1 . . . . . 5 . . . . Spaces Dug 32 | . . . . . 2 2 14 6 . . . 8 Terrain Destroyed 284 | . 63 43 . . 87 2 14 18 . . 49 8 Melee 30 | . . . . . . 2 14 6 . . . 8 Projectile 45 | . . . . . 45 . . . . . . . AOE 209 | . 63 43 . . 42 . . 12 . . 49 . Terrain Rammed . | . . . . . . . . . . . . . Walls Destroyed . | . . . . . . . . . . . . . Machines Disabled . | . . . . . . . . . . . . . Actions | -11 -10 -10 -10 -9 -8 -7 -6 -6 -6 -5 -5 -4 --------- Run | Yrd Mat Min Exi Min Mat Fac Fac Low Low Fac DSF Fac Total 7308 | 78 1190 692 569 23 1628 322 572 942 48 14 247 983 Wait 246 | . 33 34 . . 67 26 18 6 . . 1 61 Move 6238 | 50 1001 643 567 18 1287 225 480 905 48 12 201 801 Hop 1 | . . . . . . . . . . . . 1 Pick Up 149 | 10 27 1 1 2 49 14 12 5 . . 12 16 Fast Attach 34 | 3 4 2 . . 8 4 1 . . . . 12 Attach 83 | 3 12 1 . . 28 6 5 1 . 2 9 16 Detach 10 | . . . . . 4 2 . . . . 1 3 Swap 69 | 1 6 4 . 2 24 10 7 8 . . 3 4 Drop 93 | . 14 2 1 1 25 19 10 7 . . 4 10 Fire 279 | 11 92 5 . . 136 14 15 1 . . 3 2 Melee 91 | . . . . . . 2 24 9 . . . 56 Ram 2 | . 1 . . . . . . . . . . 1 Kick . | . . . . . . . . . . . . . Crush . | . . . . . . . . . . . . . Escape Stasis 13 | . . . . . . . . . . . 13 . Rewire . | . . . . . . . . . . . . . Trap . | . . . . . . . . . . . . . Miscellaneous . | . . . . . . . . . . . . . Route ------- -11/Scrapyard -10/Materials (discovered 5 exits: *Mat x3 / *Min x2) -10/Mines (discovered 4 exits: *Mat x2 / *Exi / *Sub) -10/Exiles -9/Mines -8/Materials -7/Factory (discovered 2 exits: *Fac / Sto) -6/Factory (discovered 2 exits: *Low x2) -6/Lower Caves -6/Lower Caves -5/Factory (discovered 3 exits: Fac / Upp / DSF) -5/DSF -4/Factory (discovered 5 exits: Upp x2 / Ext x2 / Arm) History --------- Turn | Location | Event 12 | -11/Scrapyard | Discovered new exit (range 15) 89 | -11/Scrapyard | Entered Materials 310 | -10/Materials | Build established: Mutant 339 | -10/Materials | Discovered new exit (range 13) 349 | -10/Materials | Identified exit to Mines 529 | -10/Materials | Core integrity fell below 50% 553 | -10/Materials | Lost 3 parts (1p2n) 679 | -10/Materials | Discovered new exit (range 15) 693 | -10/Materials | Identified exit to Materials 881 | -10/Materials | Discovered exit to Materials (range 15) 1136 | -10/Materials | Build established: Scavenger-Mutant 1143 | -10/Materials | Discovered exit to Materials (range 11) 1308 | -10/Materials | Discovered exit to Mines (range 14) 1332 | -10/Materials | Entered Mines 1404 | -10/Mines | Learned Materials terminal intel 1420 | -10/Mines | Discovered exit to Materials (range 9) 1421 | -10/Mines | Learned location of Storage (-7) 1442 | -10/Mines | Discovered exit to Materials (range 15) 1445 | -10/Mines | Learned Materials emergency access door positions 1505 | -10/Mines | Deemed a non-threat by the Exiles lab entrance 1505 | -10/Mines | Discovered new exit (range 5) 1958 | -10/Mines | Discovered new exit (range 8) 1964 | -10/Mines | Identified exit to Subcaves 2002 | -10/Mines | Identified exit to Exiles 2003 | -10/Mines | Entered Exiles 2003 | -10/Exiles | Found Exiles lab abandoned 2527 | -10/Exiles | Discovered new exit (range 14) 2540 | -10/Exiles | Identified exit to Mines 2544 | -10/Exiles | Entered Mines 2564 | -9/Mines | Discovered new exit (range 3) 2566 | -9/Mines | Identified exit to Materials 2567 | -9/Mines | Entered Materials 2567 | -8/Materials | Evolved 4 slots: Propulsion x1, Utility x2, Weapon x1 2569 | -8/Materials | Loaded intel: 12 terminal locations 2657 | -8/Materials | Lost 3 parts (1p1u1w) 3020 | -8/Materials | Lost 11 parts (1p4n3u3w) 3574 | -8/Materials | Repaired EM Pulse Cannon 3710 | -8/Materials | Build established: Gunner 3718 | -8/Materials | Garrison activated, responded to threat 4088 | -8/Materials | Garrison activated, responded to threat 4270 | -8/Materials | Core integrity fell below 50% 5010 | -8/Materials | Discovered new exit (range 13) 5045 | -8/Materials | Core integrity fell below 20% 5150 | -8/Materials | Identified exit to Factory 5201 | -8/Materials | Entered Factory 5201 | -7/Factory | Evolved 2 slots: Utility x1, Weapon x1 5202 | -7/Factory | Identified exit to Storage 5594 | -7/Factory | Repaired Structural Scanner 5618 | -7/Factory | Discovered new exit (range 5) 5622 | -7/Factory | Identified exit to Factory 5622 | -7/Factory | Entered another Factory area 5622 | -6/Factory | Evolved 2 slots: Propulsion x1, Utility x1 5820 | -6/Factory | Build established: Scavenger-Gunner 5832 | -6/Factory | Identified exit to Lower Caves 6024 | -6/Factory | Entered Lower Caves 6106 | -6/Lower Caves | Encountered a Warlord checkpoint 6156 | -6/Lower Caves | Build established: Hacker-Skirmisher 6232 | -6/Lower Caves | Spotted B-75 Beast 6476 | -6/Lower Caves | Learned location of 1 exit from Factory 6496 | -6/Lower Caves | Learned 4 Factory zone layouts 6540 | -6/Lower Caves | Discovered new exit (range 7) 6543 | -6/Lower Caves | Identified exit to Lower Caves 6548 | -6/Lower Caves | Entered another Lower Caves area 6570 | -6/Lower Caves | Discovered new exit (range 7) 6573 | -6/Lower Caves | Identified exit to Factory 6573 | -6/Lower Caves | Entered Factory 6573 | -5/Factory | Evolved 2 slots: Utility x2 6574 | -5/Factory | Identified exit to Upper Caves 6575 | -5/Factory | Identified exit to Factory 6582 | -5/Factory | Identified exit to DSF 6582 | -5/Factory | Entered DSF 6619 | -5/DSF | Additional patrols routed to DSF 6678 | -5/DSF | Lost 6 parts (1p1n2u2w) 6704 | -5/DSF | Discovered exit to Factory (range 11) 6750 | -5/DSF | Entered Factory 6750 | -4/Factory | Evolved 2 slots: Power x1, Utility x1 6788 | -4/Factory | Identified exit to Upper Caves 6788 | -4/Factory | Identified exit to Extension 6788 | -4/Factory | Identified exit to Armory 7028 | -4/Factory | Repaired Structural Scanner 7092 | -4/Factory | Repaired ECM Suite 7177 | -4/Factory | System corruption reached 10% 7445 | -4/Factory | Build established: Hacker-Mutant 7593 | -4/Factory | Core integrity fell below 50% 7628 | -4/Factory | Cargo convoy interrupted 7630 | -4/Factory | Core integrity fell below 20% 7633 | -4/Factory | Destroyed by H-77 Assassin with High-powered Shotgun Last Messages --------------- 07630_ K-01 Serf collects debris. 07630_ C-30 ARC bursts open, deploying its payload. 07630_ X-82 Rainmaker unfolds itself. 07630_ H-77 Assassin unfolds itself. 07630_ E-15 Imp unfolds itself. 07630_ Slug penetrates X-82 Rainmaker. 07630_ K-01 Serf collects debris. 07630_ P-70 Sage resets H-77 Assassin, system corruption cleaned. 07630_ VTOL Module destroyed. 07631_ Neutrino Reactor explodes. 07631_ Door malfunctions. 07631_ Slug penetrates Wall. 07631_ Penetrated by Slug. 07631_ U-05 Engineer lays Concrete. 07632_ K-01 Serf collects debris. 07632_ U-05 Engineer lays Concrete. 07633_ P-70 Sage resets X-77 Beamer, system corruption cleaned. Map ----- +----------------------------------------------------+ | ??????????????????????????????????????? ???????# | | ???????????????????????????????????????###???????# | | ???????????????????????????????????????########### | | ????????????????????????????????????????# # | | ????????????????????????????????????????# """" # | | ????????????????????????????????????????# """" # | | ????????????????????????????????????????# """" # | | ????????????????????????????????????????# """" # | | ???????????????????????????????########## # | | ???????????????????????????????# ## # | | ???????????????????????????????# ## # | | ???????????????????????????????# ## # | | ???????????????????????????????# #######+### | | ???????????????????????????????# ## / | | ???????????????????????????????# / # | | ???????????????????????????????# ## # | | ???????????????????????????????# ## # | | ???????????????????????????????# ## # | | ???????????????????????????????# # | | ???????????????????????????????# # | | ???????????????????????????????# / " " | | ???????????????????????????????# # " " | | ???????????????????????????????# # " " | | ????????????????"""???????????## # " " | | ???????????????"""" #####p## # " " | | ???????????????"""" @kxkhu/% A # " " | | ???????????????"""" h hpk## ####### "" " " | | ????????????????""" k x i ??? "Y " " | | ????????????????""" e ?? "" " "? | | ????????????????""" t ? ?? | | ????????????????k ?? ?? | | ???????????????"""" A ??#####?? | | ???????????????"""" ??#####?? | | ?????????????????"" #???????? | | ?????????????????"" #???????? | | ?????????????????"" ######## ##### #???????? | | ?????????????????"" ????????+#????+#???????? | | ??????????????????" ???????????????????????? | | ?????????????????? ???????????????????????? | | ????????????????????? ???????????????????????? | | ??????????????????????? ???????????????????????? | | ?????????????????????????????????????????????????? | | ?????????????????????????????????????????????????? | | ?????????????????????????????????????????????????? | | ?????????????????????????????????????????????????? | | ?????????????????????????????????????????????????? | | ?????????????????????????????????????????????????? | | ?????????????????????????????????????????????????? | | ?????????????????????????????????????????????????? | | ?????????????????????????????????????????????????? | +----------------------------------------------------+ Best States ------------- Heat Dissipation 43 Energy Generation 31 Energy Capacity 250 Matter Stores 300 Matter Capacity 350 Sight Range 16 Robot Scan Range 16 Terrain Scan Density 10 ECM Strength 1 Evasion (%) 65 Targeting Accuracy 8 Recoil Reduction 3 Offensive Hacking 31 Item Schematics ----------------- None Robot Schematics ------------------ None Fabricated ------------ Nothing Alien Tech Used ----------------- None Achievements -------------- Armchair Analyst I Spy Challenges ------------ None Game ------ Seed AnalysisHugeMicrothruster Manual? 0 Play Time 02:22:56 Cumulative 29.3 hours Start 2024.06.20 @ 15:12:45 End 2024.06.21 @ 17:04:13 Sessions 5 Manual Loads 0 Difficulty Rogue Special Mode None Game No. 20 Rogue 19 Adventurer 1 Explorer 0 Win Type - Total 0 Types 0/0/0/0/0/0/0/0/0 Lore% 17 Gallery% 19 Achievement% 22 Wizard Run 0 Options --------- Layout 1 ASCII 0 Keyboard 0 Movement Mouse Keybinds 0 Fullscreen 1 Font 20/SmallcapsGlow Map View 50x35 Zoom Use 0% Tactical HUD 1 Map Filters NONE Filters NONE Steam 1 RUN: 095c8548-acb4-4c35-97b3-5348eb41ae64